fUST/lending_fUST_20250514
["ID","MTS","AMOUNT","RATE_DAILY","PERIOD"]
[360963301,1747165853194,-400.0,0.00013972,2]
[360963302,1747165853204,-513.18,0.00013972,2]
[360963303,1747165853215,-400.0,0.00013972,2]
[360963304,1747165853224,-2352.65,0.00013972,2]
[360963305,1747165853234,-1246.17,0.00013972,2]
[360963306,1747165853244,-409.92,0.00013972,2]
[360963307,1747165853253,-400.0,0.00013972,2]
[360963308,1747165853263,-4350.01,0.00013972,2]
[360963309,1747165853274,-772.45,0.00013972,2]
[360963310,1747165853284,-400.0,0.00013972,2]
[360963311,1747165853294,-2094.84,0.00013972,2]
[360963312,1747165853303,-400.0,0.00013972,2]
[360963313,1747165853313,-578.61,0.00013972,2]
[360963314,1747165853323,-325.09333378,0.00013972,2]
[360963315,1747165853332,-1280.71,0.00013972,2]
[360963316,1747165853341,-758.55,0.00013972,2]
[360963317,1747165853351,-4770.09,0.00013972,2]
[360963318,1747165853361,-400.0,0.00013972,2]
[360963319,1747165853371,-1097.33,0.00013972,2]
[360963320,1747165853380,-879.2,0.00013972,2]
[360963321,1747165853389,-400.0,0.00013972,2]
[360963322,1747165853402,-2977.51,0.00013972,2]
[360963323,1747165853412,-346.5559065,0.00013972,2]
[360963324,1747165853422,-4870.77,0.00013972,2]
[360963325,1747165853431,-2734.28,0.00013972,2]
[360963326,1747165853440,-410.8,0.00013972,2]
[360963327,1747165853449,-628.95,0.00013972,2]
[360963328,1747165853459,-400.0,0.00013972,2]
[360963329,1747165853468,-400.0,0.00013972,2]
[360963330,1747165853478,-1424.7,0.00013972,2]
[360963331,1747165853487,-400.0,0.00013972,2]
[360963332,1747165853496,-153.695995,0.00013972,2]
[360963333,1747165853506,-1049.1,0.00013972,2]
[360963334,1747165853516,-485.76,0.00013972,2]
[360963335,1747165853525,-466.24,0.00013972,2]
[360963336,1747165853534,-1646.78,0.00013972,2]
[360963337,1747165853543,-1090.21,0.00013972,2]
[360963338,1747165853553,-522.36,0.00013972,2]
[360963339,1747165853562,-530.77,0.00013972,2]
[360963340,1747165853572,-470.5,0.00013972,2]
[360963341,1747165853581,-4246.12,0.00013972,2]
[360963342,1747165853590,-1246.69,0.00013972,2]
[360963343,1747165853600,-473.75,0.00013972,2]
[360963344,1747165853609,-1286.98,0.00013972,2]
[360963345,1747165853619,-2063.35,0.00013972,2]
[360963346,1747165853629,-521.13,0.00013972,2]
[360963347,1747165853639,-400.0,0.00013972,2]
[360963348,1747165853650,-3442.94,0.00013972,2]
[360963349,1747165853660,-1029.81,0.00013972,2]
[360963350,1747165853670,-400.0,0.00013972,2]
[360963351,1747165853681,-492.12,0.00013972,2]
[360963352,1747165853691,-994.16,0.00013972,2]
[360963353,1747165853700,-400.0,0.00013972,2]
[360963354,1747165853710,-400.0,0.00013972,2]
[360963355,1747165853719,-16552.3,0.00013972,2]
[360963356,1747165853729,-400.0,0.00013972,2]
[360963357,1747165853738,-151.0,0.00013972,2]
[360963358,1747165853747,-4146.43,0.00013972,2]
[360963359,1747165853756,-935.41,0.00013972,2]
[360963360,1747165853766,-400.0,0.00013972,2]
[360963361,1747165853775,-400.0,0.00013972,2]
[360963362,1747165853785,-904.95,0.00013972,2]
[360963363,1747165853794,-400.0,0.00013972,2]
[360963364,1747165853803,-400.0,0.00013972,2]
[360963365,1747165853813,-505.97,0.00013972,2]
[360963366,1747165853822,-400.0,0.00013972,2]
[360963367,1747165853831,-400.0,0.00013972,2]
[360963368,1747165853841,-986.97,0.00013972,2]
[360963369,1747165853850,-400.0,0.00013972,2]
[360963370,1747165853859,-400.0,0.00013972,2]
[360963371,1747165853869,-2080.0,0.00013972,2]
[360963372,1747165853878,-856.98,0.00013972,2]
[360963373,1747165853888,-400.0,0.00013972,2]
[360963374,1747165853898,-400.0,0.00013972,2]
[360963375,1747165853907,-816.18,0.00013972,2]
[360963376,1747165853916,-4090.44,0.00013972,2]
[360963377,1747165853926,-400.0,0.00013972,2]
[360963378,1747165853935,-2500.06,0.00013972,2]
[360963379,1747165853944,-400.0,0.00013972,2]
[360963380,1747165853954,-252.901637,0.00013972,2]
[360963381,1747165853963,-252.901637,0.00013972,2]
[360963382,1747165853972,-1839.26,0.00013972,2]
[360963383,1747165853984,-400.0,0.00013972,2]
[360963384,1747165853994,-729.1,0.00013972,2]
[360963385,1747165854003,-400.0,0.00013972,2]
[360963386,1747165854012,-2414.43,0.00013972,2]
[360963387,1747165854023,-805.32,0.00013972,2]
[360963388,1747165854031,-579.15,0.00013972,2]
[360963389,1747165854041,-452.32,0.00013972,2]
[360963390,1747165854051,-252.901637,0.00013972,2]
[360963391,1747165854062,-252.901637,0.00013972,2]
[360963392,1747165854071,-823.91,0.00013972,2]
[360963393,1747165854081,-400.0,0.00013972,2]
[360963394,1747165854091,-151.0,0.00013972,2]
[360963395,1747165854101,-400.0,0.00013972,2]
[360963396,1747165854111,-400.0,0.00013972,2]
[360963397,1747165854120,-2287.15,0.00013972,2]
[360963398,1747165854130,-1256.54,0.00013972,2]
[360963399,1747165854139,-151.0,0.00013972,2]
[360963400,1747165854152,-4313.52,0.00013972,2]
[360963401,1747165854161,-3147.99,0.00013972,2]
[360963402,1747165854171,-400.0,0.00013972,2]
[360963403,1747165854181,-5823.6,0.00013972,2]
[360963404,1747165854191,-400.0,0.00013972,2]
[360963405,1747165854201,-400.0,0.00013972,2]
[360963406,1747165854211,-400.0,0.00013972,2]
[360963407,1747165854220,-495.83,0.00013972,2]
[360963408,1747165854230,-449.02,0.00013972,2]
[360963409,1747165854240,-400.0,0.00013972,2]
[360963410,1747165854250,-400.0,0.00013972,2]
[360963411,1747165854259,-400.0,0.00013972,2]
[360963412,1747165854268,-500.0,0.00013972,2]
[360963413,1747165854278,-727.79,0.00013972,2]
[360963414,1747165854287,-400.0,0.00013972,2]
[360963415,1747165854297,-5870.97,0.00013972,2]
[360963416,1747165854307,-624.88,0.00013972,2]
[360963417,1747165854318,-563.66,0.00013972,2]
[360963418,1747165854328,-548.75,0.00013972,2]
[360963419,1747165854338,-1915.24,0.00013972,2]
[360963420,1747165854348,-1995.86,0.00013972,2]
[360963421,1747165854359,-859.29,0.00013972,2]
[360963422,1747165854369,-1099.69,0.00013972,2]
[360963423,1747165854379,-301.41388107,0.00013972,2]
[360963424,1747165854391,-580.59,0.00013972,2]
[360963425,1747165854403,-400.0,0.00013972,2]
[360963426,1747165854413,-400.0,0.00013972,2]
[360963427,1747165854423,-537.52,0.00013972,2]
[360963428,1747165854434,-1376.43,0.00013972,2]
[360963429,1747165854444,-400.0,0.00013972,2]
[360963430,1747165854454,-3838.26,0.00013972,2]
[360963431,1747165854464,-887.96,0.00013972,2]
[360963432,1747165854474,-1220.47,0.00013972,2]
[360963433,1747165854484,-400.0,0.00013972,2]
[360963434,1747165854494,-296.83078456,0.00013972,2]
[360963435,1747165854504,-670.92,0.00013972,2]
[360963436,1747165854515,-2719.72,0.00013972,2]
[360963437,1747165854526,-400.0,0.00013972,2]
[360963438,1747165854535,-400.0,0.00013972,2]
[360963439,1747165854546,-1026.49,0.00013972,2]
[360963440,1747165854557,-400.0,0.00013972,2]
[360963441,1747165854567,-400.0,0.00013972,2]
[360963442,1747165854577,-449.07,0.00013972,2]
[360963443,1747165854587,-2437.19,0.00013972,2]
[360963444,1747165854598,-567.23,0.00013972,2]
[360963445,1747165854608,-534.54,0.00013972,2]
[360963446,1747165854618,-535.13,0.00013972,2]
[360963447,1747165854628,-652.83,0.00013972,2]
[360963448,1747165854638,-1740.08,0.00013972,2]
[360963449,1747165854650,-1335.11,0.00013972,2]
[360963450,1747165854659,-400.0,0.00013972,2]
[360963451,1747165854670,-1075.19,0.00013972,2]
[360963452,1747165854680,-400.0,0.00013972,2]
[360963453,1747165854690,-72.6306215,0.00013972,2]
[360963454,1747165855044,-327.3693785,0.00013972,2]
[360963455,1747165855057,-406.1,0.00013972,2]
[360963456,1747165855067,-400.0,0.00013972,2]
[360963457,1747165855077,-273.06932241,0.00013972,2]
[360963458,1747165855100,-1192.94067759,0.00013972,2]
[360963459,1747165855110,-1919.55932405,0.00013972,2]
[360963460,1747165855122,-8336.68067595,0.00013972,2]
[360963461,1747165855132,-400.0,0.00013972,2]
[360963462,1747165855143,-774.91,0.00013972,2]
[360963463,1747165855157,-400.0,0.00013972,2]
[360963464,1747165855167,-16328.40932405,0.00013972,2]
[360963502,1747166831127,-5000.0,0.00011962,2]
[360963503,1747166831151,-328.17,0.00012329,2]
[360963504,1747166831174,-164.476756,0.0001259,2]
[360963505,1747166831201,-960.0379162,0.00012698,2]
[360963506,1747166831225,-250.31360517,0.00013268,2]
[360963507,1747166831249,-206.95246005,0.00013598,2]
[360963508,1747166831276,-381.83670124,0.00013698,2]
[360963553,1747167032085,-5000.0,0.00013463,2]
[360963555,1747167032096,-181.08340257,0.00013598,2]
[360963557,1747167032106,-187.67082806,0.00013599,2]
[360963558,1747167032115,-4153.0,0.000136,2]
[360963560,1747167032125,-300.0,0.00013696,2]
[360963562,1747167032134,-300.0,0.00013696,2]
[360963563,1747167032144,-500.0,0.00013697,2]
[360963565,1747167032154,-500.0,0.00013697,2]
[360963567,1747167032165,-500.0,0.00013697,2]
[360963568,1747167032174,-406.53739746,0.00013697,2]
[360963569,1747167032184,-470.825994,0.00013697,2]
[360963571,1747167032194,-425.82,0.00013698,2]
[360963573,1747167032204,-416.17,0.00013698,2]
[360963575,1747167032214,-400.0,0.00013698,2]
[360963576,1747167032223,-400.0,0.00013698,2]
[360963578,1747167032233,-400.0,0.00013698,2]
[360963579,1747167032243,-400.0,0.00013698,2]
[360963580,1747167032254,-400.0,0.00013698,2]
[360963582,1747167032264,-396.64843461,0.00013698,2]
[360963584,1747167032274,-532.38,0.00013698,2]
[360963586,1747167032285,-400.0,0.00013698,2]
[360963587,1747167032295,-400.0,0.00013698,2]
[360963589,1747167032305,-925.82,0.00013698,2]
[360963591,1747167032316,-400.0,0.00013698,2]
[360963593,1747167032331,-200.92366137,0.00013698,2]
[360963594,1747167032342,-400.0,0.00013698,2]
[360963596,1747167032352,-400.0,0.00013698,2]
[360963598,1747167032362,-400.0,0.00013698,2]
[360963600,1747167032373,-400.0,0.00013698,2]
[360963601,1747167032383,-400.0,0.00013698,2]
[360963603,1747167032394,-400.0,0.00013698,2]
[360963605,1747167032405,-400.0,0.00013698,2]
[360963607,1747167032414,-400.0,0.00013698,2]
[360963608,1747167032424,-400.0,0.00013698,2]
[360963610,1747167032434,-400.0,0.00013698,2]
[360963612,1747167032444,-400.0,0.00013698,2]
[360963614,1747167032454,-400.0,0.00013698,2]
[360963615,1747167032463,-1395.3,0.00013698,2]
[360963617,1747167032473,-400.0,0.00013698,2]
[360963619,1747167032482,-400.0,0.00013698,2]
[360963621,1747167032493,-400.0,0.00013698,2]
[360963622,1747167032503,-400.0,0.00013698,2]
[360963624,1747167032513,-400.0,0.00013698,2]
[360963626,1747167032523,-260.31970175,0.00013698,2]
[360963629,1747167032545,-139.68029825,0.00013698,2]
[360963631,1747167032555,-400.0,0.00013698,2]
[360963632,1747167032564,-400.0,0.00013698,2]
[360963634,1747167032573,-400.0,0.00013698,2]
[360963636,1747167032582,-400.0,0.00013698,2]
[360963637,1747167032593,-400.0,0.00013698,2]
[360963639,1747167032602,-400.0,0.00013698,2]
[360963641,1747167032612,-400.0,0.00013698,2]
[360963643,1747167032621,-519.08,0.00013698,2]
[360963644,1747167032630,-400.0,0.00013698,2]
[360963646,1747167032640,-169.585,0.00013698,2]
[360963648,1747167032649,-400.0,0.00013698,2]
[360963650,1747167032659,-400.0,0.00013698,2]
[360963651,1747167032668,-400.0,0.00013698,2]
[360963653,1747167032678,-543.20736509,0.00013698,2]
[360963655,1747167032688,-554.68,0.00013698,2]
[360963657,1747167032698,-400.0,0.00013698,2]
[360963658,1747167032707,-400.0,0.00013698,2]
[360963660,1747167032717,-400.0,0.00013698,2]
[360963662,1747167032726,-677.9,0.00013698,2]
[360963664,1747167032736,-400.0,0.00013698,2]
[360963665,1747167032746,-400.0,0.00013698,2]
[360963667,1747167032756,-537.08,0.00013698,2]
[360963668,1747167032766,-400.0,0.00013698,2]
[360963670,1747167032775,-1568.72,0.00013698,2]
[360963672,1747167032785,-1173.98,0.00013698,2]
[360963673,1747167032794,-400.0,0.00013698,2]
[360963675,1747167032804,-412.71,0.00013698,2]
[360963676,1747167032813,-400.0,0.00013698,2]
[360963678,1747167032822,-824.92,0.00013698,2]
[360963680,1747167032831,-478.83,0.00013698,2]
[360963681,1747167032841,-400.0,0.00013698,2]
[360963682,1747167032851,-400.0,0.00013698,2]
[360963683,1747167032860,-400.0,0.00013698,2]
[360963685,1747167032869,-911.31,0.00013698,2]
[360963686,1747167032878,-400.0,0.00013698,2]
[360963687,1747167032887,-400.0,0.00013698,2]
[360963688,1747167032896,-400.0,0.00013698,2]
[360963689,1747167032906,-400.0,0.00013698,2]
[360963690,1747167032915,-400.0,0.00013698,2]
[360963691,1747167032925,-400.0,0.00013698,2]
[360963692,1747167032934,-490.92,0.00013698,2]
[360963693,1747167032944,-400.0,0.00013698,2]
[360963694,1747167032953,-1156.89,0.00013698,2]
[360963695,1747167032961,-400.0,0.00013698,2]
[360963696,1747167032970,-772.6,0.00013698,2]
[360963697,1747167032980,-400.0,0.00013698,2]
[360963698,1747167032990,-1829.54,0.00013698,2]
[360963699,1747167032999,-452.45,0.00013698,2]
[360963700,1747167033008,-400.0,0.00013698,2]
[360963701,1747167033018,-400.0,0.00013698,2]
[360963702,1747167033027,-400.0,0.00013698,2]
[360963703,1747167033036,-400.0,0.00013698,2]
[360963704,1747167033046,-400.0,0.00013698,2]
[360963705,1747167033056,-400.0,0.00013698,2]
[360963706,1747167033065,-400.0,0.00013698,2]
[360963707,1747167033075,-667.14,0.00013698,2]
[360963708,1747167033085,-400.0,0.00013698,2]
[360963709,1747167033098,-460.84,0.00013698,2]
[360963710,1747167033108,-441.12,0.00013698,2]
[360963711,1747167033119,-400.0,0.00013698,2]
[360963712,1747167033129,-400.0,0.00013698,2]
[360963713,1747167033140,-787.68,0.00013698,2]
[360963714,1747167033151,-400.0,0.00013698,2]
[360963715,1747167033161,-400.0,0.00013698,2]
[360963716,1747167033172,-724.73,0.00013698,2]
[360963717,1747167033183,-400.0,0.00013698,2]
[360963718,1747167033194,-402.88,0.00013698,2]
[360963719,1747167033205,-511.73,0.00013698,2]
[360963720,1747167033215,-1261.73,0.00013698,2]
[360963721,1747167033226,-400.0,0.00013698,2]
[360963722,1747167033236,-400.0,0.00013698,2]
[360963723,1747167033247,-400.0,0.00013698,2]
[360963724,1747167033257,-400.0,0.00013698,2]
[360963725,1747167033268,-623.28,0.00013698,2]
[360963726,1747167033278,-1223.85,0.00013698,2]
[360963727,1747167033289,-400.0,0.00013698,2]
[360963728,1747167033300,-813.54,0.00013698,2]
[360963729,1747167033310,-410.86,0.00013698,2]
[360963730,1747167033320,-610.29,0.00013698,2]
[360963731,1747167033334,-400.0,0.00013698,2]
[360963732,1747167033349,-543.29296595,0.00013698,2]
[360963733,1747167033360,-509.2,0.00013698,2]
[360963734,1747167033372,-400.0,0.00013698,2]
[360963735,1747167033382,-539.25,0.00013698,2]
[360963736,1747167033393,-400.0,0.00013698,2]
[360963737,1747167033403,-900.7,0.00013698,2]
[360963738,1747167033498,-531.75,0.00013698,2]
[360963739,1747167033508,-400.0,0.00013698,2]
[360963740,1747167033518,-691.03,0.00013698,2]
[360963741,1747167033529,-1837.6,0.00013698,2]
[360963742,1747167033539,-400.0,0.00013698,2]
[360963743,1747167033550,-400.0,0.00013698,2]
[360963744,1747167033561,-403.55,0.00013698,2]
[360963745,1747167033571,-410.71,0.00013698,2]
[360963746,1747167033582,-400.0,0.00013698,2]
[360963747,1747167033594,-1319.78,0.00013698,2]
[360963748,1747167033605,-400.0,0.00013698,2]
[360963749,1747167033616,-568.75,0.00013698,2]
[360963750,1747167033626,-1242.85,0.00013698,2]
[360963751,1747167033636,-1035.6,0.00013698,2]
[360963752,1747167033647,-790.4,0.00013698,2]
[360963753,1747167033657,-614.67,0.00013698,2]
[360963754,1747167033667,-400.0,0.00013698,2]
[360963755,1747167033677,-576.54,0.00013698,2]
[360963756,1747167033686,-400.0,0.00013698,2]
[360963757,1747167033695,-400.0,0.00013698,2]
[360963758,1747167033705,-400.0,0.00013698,2]
[360963759,1747167033716,-403.98,0.00013698,2]
[360963760,1747167033727,-400.0,0.00013698,2]
[360963761,1747167033739,-1765.54,0.00013698,2]
[360963762,1747167033750,-400.0,0.00013698,2]
[360963763,1747167033761,-400.0,0.00013698,2]
[360963764,1747167033772,-1151.3,0.00013698,2]
[360963765,1747167033783,-400.0,0.00013698,2]
[360963766,1747167033794,-400.0,0.00013698,2]
[360963767,1747167033804,-427.38,0.00013698,2]
[360963768,1747167033815,-400.0,0.00013698,2]
[360963769,1747167033826,-422.65,0.00013698,2]
[360963770,1747167033836,-507.83,0.00013698,2]
[360963771,1747167033848,-400.0,0.00013698,2]
[360963772,1747167033859,-400.0,0.00013698,2]
[360963773,1747167033870,-463.81,0.00013698,2]
[360963774,1747167033880,-519.43,0.00013698,2]
[360963775,1747167033890,-862.18,0.00013698,2]
[360963776,1747167033901,-400.0,0.00013698,2]
[360963777,1747167033912,-400.0,0.00013698,2]
[360963778,1747167033923,-400.0,0.00013698,2]
[360963779,1747167033933,-400.0,0.00013698,2]
[360963780,1747167033943,-400.0,0.00013698,2]
[360963781,1747167033954,-400.0,0.00013698,2]
[360963782,1747167033963,-400.0,0.00013698,2]
[360963783,1747167033973,-400.0,0.00013698,2]
[360963784,1747167033982,-869.16,0.00013698,2]
[360963785,1747167033991,-400.0,0.00013698,2]
[360963786,1747167034001,-400.0,0.00013698,2]
[360963787,1747167034011,-400.0,0.00013698,2]
[360963788,1747167034021,-649.91,0.00013698,2]
[360963789,1747167034030,-530.89,0.00013698,2]
[360963790,1747167034039,-400.0,0.00013698,2]
[360963791,1747167034051,-400.0,0.00013698,2]
[360963792,1747167034061,-400.0,0.00013698,2]
[360963793,1747167034071,-400.0,0.00013698,2]
[360963794,1747167034081,-400.0,0.00013698,2]
[360963795,1747167034091,-404.88,0.00013698,2]
[360963796,1747167034102,-400.0,0.00013698,2]
[360963797,1747167034111,-400.0,0.00013698,2]
[360963798,1747167034122,-400.0,0.00013698,2]
[360963799,1747167034131,-400.0,0.00013698,2]
[360963800,1747167034142,-414.63,0.00013698,2]
[360963801,1747167034152,-400.0,0.00013698,2]
[360963802,1747167034162,-400.0,0.00013698,2]
[360963803,1747167034173,-477.7,0.00013698,2]
[360963804,1747167034183,-400.0,0.00013698,2]
[360963805,1747167034194,-1200.84,0.00013698,2]
[360963806,1747167034205,-400.0,0.00013698,2]
[360963807,1747167034215,-400.0,0.00013698,2]
[360963808,1747167034225,-460.54,0.00013698,2]
[360963809,1747167034235,-516.69,0.00013698,2]
[360963810,1747167034245,-901.08,0.00013698,2]
[360963811,1747167034255,-454.51,0.00013698,2]
[360963812,1747167034265,-695.34,0.00013698,2]
[360963813,1747167034275,-400.0,0.00013698,2]
[360963814,1747167034285,-307.45790692,0.00013698,2]
[360963815,1747167034295,-400.0,0.00013698,2]
[360963816,1747167034305,-400.0,0.00013698,2]
[360963817,1747167034315,-400.09,0.00013698,2]
[360963818,1747167034327,-400.0,0.00013698,2]
[360963819,1747167034337,-400.0,0.00013698,2]
[360963820,1747167034348,-408.76,0.00013698,2]
[360963821,1747167034358,-815.35,0.00013698,2]
[360963822,1747167034368,-1509.55,0.00013698,2]
[360963823,1747167034378,-400.0,0.00013698,2]
[360963824,1747167034387,-167.56739292,0.00013698,2]
[360963825,1747167034398,-400.0,0.00013698,2]
[360963826,1747167034408,-1163.81,0.00013698,2]
[360963827,1747167034419,-400.0,0.00013698,2]
[360963828,1747167034429,-430.27,0.00013698,2]
[360963829,1747167034440,-400.0,0.00013698,2]
[360963830,1747167034450,-400.0,0.00013698,2]
[360963831,1747167034461,-679.9,0.00013698,2]
[360963832,1747167034471,-400.0,0.00013698,2]
[360963833,1747167034482,-428.26,0.00013698,2]
[360963834,1747167034496,-874.46,0.00013698,2]
[360963835,1747167034507,-490.0,0.00013698,2]
[360963836,1747167034519,-400.0,0.00013698,2]
[360963837,1747167034529,-400.0,0.00013698,2]
[360963838,1747167034540,-400.0,0.00013698,2]
[360963839,1747167034549,-400.0,0.00013698,2]
[360963840,1747167034559,-400.0,0.00013698,2]
[360963841,1747167034570,-400.0,0.00013698,2]
[360963842,1747167034580,-500.0,0.00013698,2]
[360963843,1747167034592,-849.99,0.00013698,2]
[360963844,1747167034602,-801.59,0.00013698,2]
[360963845,1747167034612,-520.13,0.00013698,2]
[360963846,1747167034622,-400.0,0.00013698,2]
[360963847,1747167034631,-400.0,0.00013698,2]
[360963848,1747167034641,-2645.4,0.00013698,2]
[360963849,1747167034651,-400.0,0.00013698,2]
[360963850,1747167034661,-400.0,0.00013698,2]
[360963851,1747167034671,-1819.63,0.00013698,2]
[360963852,1747167034683,-1325.44,0.00013698,2]
[360963853,1747167034692,-773.6,0.00013698,2]
[360963854,1747167034702,-1724.59,0.00013698,2]
[360963855,1747167034713,-419.98,0.00013698,2]
[360963856,1747167034723,-400.0,0.00013698,2]
[360963857,1747167034733,-857.46,0.00013698,2]
[360963858,1747167034743,-400.0,0.00013698,2]
[360963859,1747167034754,-503.37690468,0.00013698,2]
[360963860,1747167034763,-1982.36,0.00013698,2]
[360963861,1747167034774,-3987.51,0.00013698,2]
[360963862,1747167034784,-3349.46,0.00013698,2]
[360963863,1747167034796,-1971.51,0.00013698,2]
[360963864,1747167034807,-400.0,0.00013698,2]
[360963865,1747167034818,-400.0,0.00013698,2]
[360963866,1747167034829,-400.0,0.00013698,2]
[360963867,1747167034844,-1118.77,0.00013698,2]
[360963868,1747167034855,-1005.88,0.00013698,2]
[360963869,1747167034864,-738.21,0.00013698,2]
[360963870,1747167034875,-422.73,0.00013698,2]
[360963871,1747167034885,-400.0,0.00013698,2]
[360963872,1747167034895,-400.0,0.00013698,2]
[360963873,1747167034904,-400.0,0.00013698,2]
[360963874,1747167034914,-1218.13,0.00013698,2]
[360963875,1747167034925,-198.51295153,0.00013698,2]
[360963876,1747167034935,-400.0,0.00013698,2]
[360963877,1747167034945,-400.0,0.00013698,2]
[360963878,1747167034956,-5092.51,0.00013698,2]
[360963879,1747167034967,-400.0,0.00013698,2]
[360963880,1747167034977,-400.0,0.00013698,2]
[360963881,1747167034987,-1595.08,0.00013698,2]
[360963882,1747167034997,-458.23,0.00013698,2]
[360963883,1747167035008,-3749.57,0.00013698,2]
[360963884,1747167035019,-400.0,0.00013698,2]
[360963885,1747167035029,-779.82,0.00013698,2]
[360963886,1747167035039,-15029.04,0.00013698,2]
[360963887,1747167035049,-400.0,0.00013698,2]
[360963888,1747167035061,-400.0,0.00013698,2]
[360963889,1747167035072,-400.0,0.00013698,2]
[360963890,1747167035082,-5381.73,0.00013698,2]
[360963891,1747167035097,-400.0,0.00013698,2]
[360963892,1747167035108,-881.02,0.00013698,2]
[360963893,1747167035119,-400.0,0.00013698,2]
[360963894,1747167035130,-2559.66,0.00013698,2]
[360963895,1747167035140,-1555.67,0.00013698,2]
[360963896,1747167035150,-578.85,0.00013698,2]
[360963897,1747167035161,-400.0,0.00013698,2]
[360963898,1747167035172,-400.0,0.00013698,2]
[360963899,1747167035182,-492.72,0.00013698,2]
[360963900,1747167035192,-400.0,0.00013698,2]
[360963901,1747167035202,-2548.47,0.00013698,2]
[360963902,1747167035212,-400.0,0.00013698,2]
[360963903,1747167035222,-490.54,0.00013698,2]
[360963904,1747167035232,-400.0,0.00013698,2]
[360963905,1747167035242,-400.0,0.00013698,2]
[360963906,1747167035252,-1775.02,0.00013698,2]
[360963907,1747167035262,-400.0,0.00013698,2]
[360963908,1747167035273,-404.67,0.00013698,2]
[360963909,1747167035283,-3518.41,0.00013698,2]
[360963910,1747167035292,-1226.83,0.00013698,2]
[360963911,1747167035302,-341.85841287,0.00013698,2]
[360963912,1747167035312,-400.0,0.00013698,2]
[360963913,1747167035321,-1695.56,0.00013698,2]
[360963914,1747167035334,-400.0,0.00013698,2]
[360963915,1747167035346,-2493.08,0.00013698,2]
[360963916,1747167035355,-400.0,0.00013698,2]
[360963917,1747167035366,-1744.8,0.00013698,2]
[360963918,1747167035375,-400.0,0.00013698,2]
[360963919,1747167035385,-400.0,0.00013698,2]
[360963920,1747167035395,-1755.63,0.00013698,2]
[360963921,1747167035407,-519.96,0.00013698,2]
[360963922,1747167035417,-400.0,0.00013698,2]
[360963923,1747167035427,-2613.08,0.00013698,2]
[360963924,1747167035436,-2989.05,0.00013698,2]
[360963925,1747167035447,-400.0,0.00013698,2]
[360963926,1747167035456,-598.43,0.00013698,2]
[360963927,1747167035466,-400.0,0.00013698,2]
[360963928,1747167035475,-400.0,0.00013698,2]
[360963929,1747167035485,-400.0,0.00013698,2]
[360963930,1747167035496,-400.0,0.00013698,2]
[360963931,1747167035506,-400.0,0.00013698,2]
[360963932,1747167035515,-400.0,0.00013698,2]
[360963933,1747167035526,-1260.79,0.00013698,2]
[360963934,1747167035535,-417.63,0.00013698,2]
[360963935,1747167035545,-3249.88,0.00013698,2]